bitfinex-derivatives/quotes_SOLF0:USTF0_20250819
["timestamp","ask_amount","ask_price","bid_price","bid_amount"]
[1755614760708,2.95,178.56,178.42,5.6033]
[1755614760913,0.57669,178.55,178.39,12.55623826]
[1755614761211,0.57669,178.55,178.41,4.67005163]
[1755614761407,0.57669,178.54,178.39,12.55623826]
[1755614761606,0.57669,178.55,178.4,4.67005163]
[1755614761822,0.57669,178.55,178.44,5.6027]
[1755614762019,2.95,178.56,178.44,5.6027]
[1755614762020,0.57669,178.54,178.44,5.6027]
[1755614762311,0.57669,178.54,178.45,5.6026]
[1755614762512,0.57669,178.53,178.41,12.55623826]
[1755614762712,2.95,178.54,178.36,4.67005163]
[1755614762916,2.95,178.54,178.36,157.72]
[1755614763514,2.95,178.52,178.36,157.72]
[1755614763916,2.95,178.5,178.36,157.72]
[1755614764213,2.95,178.5,178.29,538.67005163]
[1755614764614,0.57669,178.49,178.29,538.67005163]
[1755614764820,2.95,178.48,178.29,538.67005163]
[1755614765210,0.57669,178.47,178.29,534.0]
[1755614765609,0.57669,178.46,178.29,534.0]
[1755614765816,0.57669,178.46,178.3,4.67005163]
[1755614766118,0.57669,178.45,178.33,12.55623826]
[1755614766323,0.57669,178.47,178.33,17.22628989]
[1755614766612,2.95,178.53,178.39,5.6043]
[1755614766808,2.95,178.53,178.37,157.74]
[1755614766809,0.57669,178.52,178.37,157.74]
[1755614767010,0.57669,178.52,178.38,12.55623826]
[1755614767218,2.95,178.53,178.38,12.55623826]
[1755614767219,0.57669,178.51,178.38,12.55623826]
[1755614767407,0.57669,178.52,178.38,12.55623826]
[1755614767720,2.95,178.53,178.42,5.6036]
[1755614768020,0.57669,178.52,178.38,12.55623826]
[1755614768211,0.57669,178.52,178.41,5.6039]
[1755614768413,2.95,178.53,178.38,12.55623826]
[1755614768612,0.57669,178.52,178.38,12.55623826]
[1755614768815,3.52669,178.58,178.43,5.6031]
[1755614769120,2.95,178.58,178.38,12.55623826]
[1755614769328,0.57669,178.57,178.38,12.55623826]
[1755614769624,0.57669,178.57,178.43,5.6032]
[1755614769821,0.57669,178.56,178.38,12.55623826]
[1755614770223,0.57669,178.55,178.43,12.55623826]
[1755614770418,0.57669,178.56,178.48,5.6016]
[1755614770617,0.57669,178.56,178.43,12.55623826]
[1755614771021,145.80866479,178.59,178.43,12.55623826]
[1755614771318,0.57669,178.58,178.43,12.55623826]
[1755614771921,2.98,178.61,178.43,12.55623826]
[1755614771922,0.57669,178.57,178.43,12.55623826]
[1755614772118,1632.27977675,178.89,178.48,12.55623826]
[1755614772119,0.57669,178.6,178.48,12.55623826]
[1755614772327,2.98,178.66,178.49,157.78]
[1755614773032,2.98,178.64,178.49,157.78]
[1755614773719,2.98,178.62,178.49,157.78]
[1755614774116,0.57669,178.61,178.49,157.78]
[1755614774326,2.98,178.6,178.49,157.78]
[1755614774826,2.98,178.58,178.43,12.55623826]
[1755614775229,2.98,178.58,178.44,5.6029]
[1755614775428,2.98,178.58,178.43,12.55623826]
[1755614775429,0.57669,178.57,178.43,12.55623826]
[1755614775725,0.57669,178.57,178.44,5.6028]
[1755614775926,0.57669,178.57,178.43,12.55623826]
[1755614776125,2.98,178.58,178.43,12.55623826]
[1755614776317,0.57669,178.57,178.43,12.55623826]
[1755614777023,0.57669,178.56,178.44,4.67005163]
[1755614777330,0.57669,178.56,178.47,5.6019]
[1755614777528,0.57669,178.56,178.45,4.67005163]
[1755614777922,2.98,178.63,178.46,4.67005163]
[1755614778123,0.57669,178.62,178.48,12.55623826]
[1755614778527,0.57669,178.61,178.48,17.22628989]
[1755614778728,2.98,178.63,178.5,4.67005163]
[1755614779033,0.57669,178.62,178.53,12.55623826]
[1755614779229,379.42,178.68,178.53,12.55623826]
[1755614779431,0.57669,178.67,178.53,17.22628989]
[1755614780024,0.57669,178.67,178.56,5.5992]
[1755614780335,0.57669,178.66,178.53,174.94628989]
[1755614780537,0.57669,178.67,178.61,5.5976]
[1755614780833,3.55669,178.77,178.59,4.67005163]
[1755614781027,3.55669,178.77,178.61,4.67005163]
[1755614781233,0.57669,178.76,178.66,5.596]
[1755614781429,0.57669,178.76,178.63,12.55623826]
[1755614781632,0.57669,178.75,178.63,12.55623826]
[1755614781831,0.57669,178.76,178.63,12.55623826]
[1755614782022,0.57669,178.76,178.59,6.03928031]
[1755614782023,0.57669,178.76,178.61,157.7]
[1755614782222,2.98,178.77,178.63,5.5968]
[1755614782428,0.57669,178.76,178.61,157.7]
[1755614782630,0.57669,178.76,178.65,12.55623826]
[1755614782829,2.98,178.84,178.72,5.5942]
[1755614783035,2.98,178.84,178.7,12.55623826]
[1755614783036,0.57669,178.83,178.7,170.23623826]
[1755614783330,0.57669,178.83,178.76,5.5929]
[1755614783535,0.57669,178.83,178.75,12.55623826]
[1755614783931,2.98,178.89,178.75,12.55623826]
[1755614784132,0.57669,178.88,178.75,12.55623826]
[1755614784527,2.98,178.94,178.8,12.55623826]
[1755614784735,2.98,178.94,178.8,170.23623826]
[1755614784942,0.57669,178.93,178.8,170.23623826]
[1755614785333,0.57669,178.92,178.8,170.23623826]
[1755614785733,0.57669,178.91,178.8,170.23623826]
[1755614785933,2.98,178.94,178.83,5.5905]
[1755614786234,0.57669,178.93,178.8,157.62]
[1755614786626,3.55669,178.92,178.8,157.62]
[1755614786826,2.98,178.92,178.75,12.55623826]
[1755614787038,2.98,178.9,178.76,5.5929]
[1755614787233,2.98,178.9,178.75,12.55623826]
[1755614787433,0.57669,178.89,178.75,12.55623826]
[1755614787826,0.57669,178.88,178.75,12.55623826]
[1755614788137,0.57669,178.89,178.76,157.62]
[1755614788339,2.98,178.88,178.76,157.62]
[1755614788930,0.57669,178.87,178.76,157.62]
[1755614789438,0.57669,178.86,178.8,12.55623826]
[1755614789656,2.98,178.92,178.8,12.55623826]
[1755614789830,2.98,178.9,178.75,12.55623826]
[1755614790231,0.57669,178.89,178.75,12.55623826]
[1755614790534,2.98,178.88,178.74,157.54]
[1755614790731,3.55669,178.88,178.75,12.55623826]
[1755614790927,3.55669,178.88,178.77,5.5924]
[1755614791227,2.98,178.88,178.75,12.55623826]
[1755614791840,2.98,178.93,178.75,12.55623826]
[1755614792641,0.57669,178.92,178.75,12.55623826]
[1755614792837,0.57669,178.92,178.8,5.5917]
[1755614793032,0.57669,178.91,178.8,12.55623826]
[1755614793239,0.57669,178.92,178.82,12.55623826]
[1755614793441,0.57669,178.92,178.82,170.03623826]
[1755614793636,0.57669,178.91,178.82,170.03623826]
[1755614793936,0.57669,178.91,178.72,213.78391589]
[1755614793937,2.98,178.91,178.72,226.34015415]
[1755614794133,0.57669,178.9,178.77,12.55623826]
[1755614794537,0.57669,178.89,178.77,12.55623826]
[1755614794735,0.57669,178.9,178.77,12.55623826]
[1755614794933,0.57669,178.9,178.77,18.14883826]
[1755614795134,0.57669,178.89,178.77,12.55623826]
[1755614795333,0.57669,178.9,178.77,12.55623826]
[1755614795541,0.57669,178.9,178.76,157.44]
[1755614795542,2.98,178.89,178.76,157.44]
[1755614795743,3.55669,178.89,178.72,226.34015415]
[1755614795938,2.98,178.87,178.72,213.78391589]
[1755614796138,2.98,178.87,178.74,5.5933]
[1755614796334,0.57669,178.86,178.72,226.34015415]
[1755614796534,2.98,178.85,178.72,213.78391589]
[1755614796739,3.55669,178.85,178.67,12.55623826]
[1755614797041,2.98,178.83,178.66,157.44]
[1755614798143,2.98,178.83,178.73,12.55623826]
[1755614798340,0.57669,178.82,178.71,12.55623826]
[1755614798641,2.98,178.83,178.71,12.55623826]
[1755614798842,0.57669,178.82,178.71,12.55623826]
[1755614799236,0.57669,178.82,178.71,18.15073826]
[1755614799436,0.57669,178.82,178.71,12.55623826]
[1755614799839,0.57669,178.81,178.71,12.55623826]
[1755614800038,2.89,178.84,178.71,12.55623826]
[1755614800341,0.57669,178.83,178.74,5.5933]
[1755614800541,0.57669,178.83,178.71,12.55623826]
[1755614800746,12.55623826,178.94,178.66,169.99623826]
[1755614800747,2.89,178.81,178.66,169.99623826]
[1755614800940,0.57669,178.8,178.66,169.99623826]
[1755614801343,0.57669,178.79,178.66,169.99623826]
[1755614801545,0.57669,178.8,178.66,169.99623826]
[1755614802038,0.57669,178.79,178.66,169.99623826]
[1755614802243,2.89,178.93,178.71,12.55623826]
[1755614802439,3.46669,178.93,178.71,12.55623826]
[1755614802634,2.89,178.93,178.71,12.55623826]
[1755614803241,2.89,178.93,178.71,18.15073826]
[1755614803640,2.89,178.91,178.71,12.55623826]
[1755614804041,2.89,178.89,178.71,12.55623826]
[1755614804443,0.57669,178.88,178.71,12.55623826]
[1755614804645,0.57669,178.88,178.76,12.55623826]
[1755614804948,2.89,178.89,178.76,12.55623826]
[1755614804949,0.57669,178.87,178.76,12.55623826]
[1755614805138,2.89,178.89,178.76,12.55623826]
[1755614805342,2.89,178.89,178.8,5.5915]
[1755614805541,533.76,178.98,178.76,12.55623826]
[1755614805542,0.57669,178.88,178.76,12.55623826]
[1755614805751,3.46669,178.97,178.76,12.55623826]
[1755614805945,2.89,178.97,178.76,12.55623826]
[1755614806145,2.89,178.95,178.75,157.38]
[1755614806350,2.89,178.95,178.77,12.55623826]
[1755614806650,0.57669,178.94,178.77,12.55623826]
[1755614807253,2.89,178.95,178.77,12.55623826]
[1755614807655,0.57669,178.94,178.82,12.55623826]
[1755614808144,12.55623826,179.09,178.82,12.55623826]
[1755614808145,0.57669,178.93,178.82,12.55623826]
[1755614808345,2.89,179.0,178.78,375.86]
[1755614808546,0.57669,178.99,178.87,12.55623826]
[1755614808749,0.57669,178.99,178.92,5.5879]
[1755614808948,0.57669,178.98,178.87,12.55623826]
[1755614809445,0.57669,178.97,178.87,12.55623826]
[1755614809651,0.57669,178.99,178.87,12.55623826]
[1755614810348,2.89,179.0,178.87,12.55623826]
[1755614810548,0.57669,178.99,178.87,12.55623826]
[1755614811348,2.89,178.97,178.86,157.36]
[1755614811852,0.57669,178.96,178.86,157.36]
[1755614812845,2.89,178.94,178.86,157.36]
[1755614813252,0.57669,178.93,178.86,157.36]
[1755614813553,0.57669,178.93,178.79,157.28]
[1755614813753,2.89,178.94,178.79,157.28]
[1755614814055,0.57669,178.93,178.79,157.28]
[1755614814346,0.57669,178.93,178.82,5.591]
[1755614814553,2.89,178.94,178.79,157.28]
[1755614814850,2.89,178.94,178.81,5.5911]
[1755614815047,0.57669,178.93,178.81,5.5911]
[1755614815753,2.89,178.94,178.81,5.5911]
[1755614815952,2.89,178.92,178.78,375.86]
[1755614816360,2.89,178.9,178.74,157.24]
[1755614816954,0.57669,178.89,178.74,157.24]
[1755614817359,2.89,178.97,178.74,157.24]
[1755614817657,3.46669,178.97,178.76,5.5927]
[1755614817853,2.89,178.95,178.74,157.24]
[1755614818058,378.55,178.95,178.74,157.24]
[1755614818259,2.89,178.93,178.74,162.8335]
[1755614818557,2.89,178.93,178.74,157.24]
[1755614818751,2.89,178.91,178.74,157.24]
[1755614819253,0.57669,178.9,178.74,157.24]
[1755614819459,0.57669,178.9,178.77,5.5925]
[1755614819660,2.89,178.91,178.77,5.5925]
[1755614819861,0.57669,178.9,178.77,5.5925]
[1755614820355,3.46669,178.89,178.74,157.24]
[1755614820559,2.89,178.89,178.74,157.24]
[1755614820759,0.57669,178.88,178.74,157.24]
[1755614821262,2.89,178.86,178.74,5.5935]
[1755614821457,2.89,178.86,178.72,157.22]
[1755614821868,0.57669,178.85,178.72,157.22]
[1755614822063,2.89,178.84,178.72,157.22]
[1755614822358,3.46669,178.84,178.73,5.5936]
[1755614822562,3.46669,178.84,178.72,157.22]
[1755614822754,0.57669,178.83,178.72,157.22]
[1755614823654,0.57669,178.82,178.72,169.77623826]
[1755614823860,2.89,178.89,178.72,169.77623826]
[1755614824059,2.89,178.89,178.72,174.36838671]
[1755614824458,0.57669,178.88,178.72,174.36838671]
[1755614824669,0.57669,178.88,178.77,12.55623826]
[1755614824854,2.89,178.89,178.77,12.55623826]
[1755614825050,0.57669,178.88,178.77,12.55623826]
[1755614825264,0.57669,178.88,178.77,17.14838671]
[1755614825459,2.89,178.94,178.82,12.55623826]
[1755614825655,2.89,178.99,178.83,157.2]
[1755614825863,2.89,178.99,178.87,12.55623826]
[1755614826056,0.57669,178.98,178.87,12.55623826]
[1755614826656,0.57669,178.98,178.94,5.5873]
[1755614827161,2.89,179.04,178.92,157.2]
[1755614827461,0.57669,179.03,178.92,157.2]
[1755614827762,0.57669,179.03,178.92,169.75623826]
[1755614827959,0.57669,179.02,178.92,169.75623826]
[1755614828266,2.89,179.08,178.92,169.75623826]
[1755614828962,0.57669,179.07,178.92,169.75623826]
[1755614829564,2.89,179.08,178.92,169.75623826]
[1755614829768,2.89,179.08,178.94,5.587]
[1755614829966,0.57669,179.07,178.92,169.75623826]
[1755614830668,3.59669,179.06,178.92,12.55623826]
[1755614830869,3.02,179.06,178.92,12.55623826]
[1755614831065,3.02,179.06,178.92,18.14393826]
[1755614831662,0.57669,179.05,178.92,12.55623826]
[1755614832062,0.57669,179.04,178.92,12.55623826]
[1755614832374,3.02,179.06,178.92,12.55623826]
[1755614832667,0.57669,179.05,178.92,12.55623826]
[1755614833065,0.57669,179.04,178.92,12.55623826]
[1755614833261,0.57669,179.04,178.83,9.12433827]
[1755614833262,3.02,179.03,178.86,4.59214845]
[1755614833467,3.02,179.03,178.85,157.12]
[1755614833666,3.02,179.01,178.85,162.7099]
[1755614833872,3.02,179.01,178.85,157.12]
[1755614834068,3.02,178.99,178.85,157.12]
[1755614834471,0.57669,178.98,178.85,157.12]
[1755614834868,0.57669,178.97,178.85,157.12]
[1755614835067,3.02,178.96,178.85,157.12]
[1755614836473,0.57669,178.95,178.85,157.12]
[1755614836869,3.02,178.96,178.85,157.12]
[1755614837063,0.57669,178.95,178.85,157.12]
[1755614837272,3.02,179.07,178.85,157.12]
[1755614837482,3.59669,179.07,178.85,157.12]
[1755614837975,3.59669,179.07,178.85,162.71]
[1755614838564,3.59669,179.07,178.85,157.12]
[1755614839475,3.02,179.05,178.85,157.12]
[1755614839671,3.02,179.05,178.86,5.5895]
[1755614839875,0.57669,179.04,178.85,157.12]
[1755614840080,3.02,179.03,178.88,5.5891]
[1755614840267,3.59669,179.03,178.85,157.12]
[1755614840674,3.59669,179.03,178.87,5.5895]
[1755614840871,0.57669,179.02,178.86,12.55623826]
[1755614841274,0.57669,179.01,178.91,12.55623826]
[1755614841476,0.57669,179.02,178.91,12.55623826]
[1755614841675,3.59669,179.07,178.91,12.55623826]
[1755614841976,3.02,179.05,178.86,12.55623826]
[1755614842377,0.57669,179.04,178.86,17.14838671]
[1755614842577,0.57669,179.04,178.86,12.55623826]
[1755614842974,0.57669,179.03,178.86,17.14838671]
[1755614843173,0.57669,179.04,178.94,5.5872]
[1755614843679,3.02,179.05,178.94,5.5872]
[1755614843878,0.57669,179.04,178.92,5.5877]
[1755614844080,0.57669,179.04,178.91,169.57623826]
[1755614844269,3.02,179.05,178.93,5.5876]
[1755614844478,0.57669,179.04,178.91,169.57623826]
[1755614844983,0.57669,179.03,178.91,169.57623826]
[1755614845182,3.02,179.05,178.91,169.57623826]
[1755614845388,0.57669,179.04,178.91,157.02]
[1755614845579,3.02,179.03,178.91,157.02]
[1755614845978,16.78,179.17,178.91,157.02]
[1755614846180,375.52,179.19,178.91,157.02]
[1755614846181,3.02,179.08,178.96,12.55623826]
[1755614846393,3.02,179.08,178.97,12.55623826]
[1755614846889,0.57669,179.07,178.98,5.5858]
[1755614847082,0.57669,179.07,178.92,17.14838671]
[1755614847288,3.02,179.05,178.89,4.59214845]
[1755614847583,3.02,179.05,178.86,4.59214845]
[1755614847887,3.02,179.05,178.85,159.0]
[1755614848188,0.57669,179.04,178.85,159.0]
[1755614848387,3.02,179.03,178.85,159.0]
[1755614848588,3.02,179.03,178.88,5.5891]
[1755614848788,3.02,179.03,178.85,159.0]
[1755614849181,3.02,179.01,178.85,159.0]
[1755614849581,0.57669,179.0,178.85,159.0]
[1755614849781,3.02,178.99,178.85,159.0]
[1755614850387,3.02,178.97,178.85,159.0]
[1755614850587,3.02,178.97,178.81,375.72]
[1755614850790,3.02,178.95,178.78,158.88]
[1755614850990,3.02,178.95,178.73,17.14838671]
[1755614851188,3.02,178.95,178.76,5.5927]
[1755614851402,3.05905222,178.88,178.74,158.86]
[1755614851586,3.05905222,178.88,178.75,4.59214845]
[1755614851790,0.57669,178.88,178.78,12.55623826]
[1755614852089,3.02,178.94,178.8,4.59214845]
[1755614852291,0.57669,178.93,178.8,4.59214845]
[1755614852497,0.57669,178.93,178.83,12.55623826]
[1755614852692,158.72,179.04,178.83,12.55623826]
[1755614852693,3.02,178.99,178.83,171.25623826]
[1755614853100,3.02,178.97,178.83,171.25623826]
[1755614853289,0.57669,178.96,178.83,171.25623826]
[1755614853688,0.57669,178.95,178.83,171.25623826]
[1755614853892,0.57669,178.96,178.83,171.25623826]
[1755614854092,0.57669,178.96,178.83,175.84838671]
[1755614854394,0.57669,178.95,178.83,171.25623826]
[1755614854598,3.02,178.97,178.83,171.25623826]
[1755614854788,0.57669,178.96,178.83,171.25623826]
[1755614855193,0.57669,178.95,178.83,175.84838671]
[1755614855385,3.02,179.02,178.91,5.5882]
[1755614855591,3.02,179.02,178.88,12.55623826]
[1755614855985,0.57669,179.01,178.85,4.59214845]
[1755614856190,3.02,179.0,178.83,175.84838671]
[1755614856592,0.57669,178.99,178.83,171.25623826]
[1755614856894,3.02,178.98,178.8,4.59214845]
[1755614857097,3.59669,178.98,178.78,17.14838671]
[1755614857399,0.57669,178.97,178.8,4.59214845]
[1755614857595,3.02,178.96,178.79,4.59214845]
[1755614857798,3.59669,178.96,178.78,17.14838671]
[1755614857995,3.02,178.96,178.8,5.5915]
[1755614858199,3.02,178.94,178.78,12.55623826]
[1755614858501,3.02,178.94,178.83,5.5908]
[1755614858701,3.02,178.94,178.78,12.55623826]
[1755614859204,3.02,178.94,178.84,5.5904]
[1755614859407,0.57669,178.93,178.78,17.14838671]
[1755614859609,0.57669,178.93,178.78,12.55623826]
[1755614859804,3.02,178.94,178.82,5.591]
[1755614860009,0.57669,178.93,178.82,5.591]
[1755614860203,0.57669,178.93,178.78,17.14838671]
[1755614860408,3.16,178.99,178.83,17.14838671]
[1755614860606,3.16,178.99,178.88,12.55623826]
[1755614860904,0.57669,178.98,178.88,12.55623826]
[1755614861096,3.16,179.04,178.88,17.14838671]
[1755614861502,3.16,179.04,178.93,5.5874]
[1755614861799,0.57669,179.03,178.93,5.5874]
[1755614862198,0.57669,179.03,178.92,5.5878]
[1755614862404,0.57669,179.02,178.88,17.14838671]
[1755614862601,3.16,179.01,178.88,12.55623826]
[1755614863001,3.16,178.99,178.84,375.58]
[1755614863715,0.57669,178.98,178.84,392.72838671]
[1755614863908,0.57669,178.98,178.88,5.589]
[1755614864105,3.16,178.99,178.84,392.72838671]
[1755614864309,3.16,178.97,178.84,388.13623826]
[1755614864707,0.57669,178.96,178.84,375.58]
[1755614865107,0.57669,178.95,178.84,375.58]
[1755614865307,3.16,178.97,178.84,375.58]
[1755614865501,0.57669,178.96,178.84,12.55623826]
[1755614865704,0.57669,178.96,178.85,4.59214845]
[1755614865904,0.57669,178.96,178.84,17.14838671]
[1755614866109,0.57669,178.96,178.87,5.5893]
[1755614866309,3.16,178.98,178.87,5.5893]
[1755614866612,0.57669,178.97,178.87,5.5893]
[1755614868108,5.5881,178.92,178.87,5.5893]
[1755614868306,0.57669,178.96,178.87,4.59214845]
[1755614868616,0.57669,178.97,178.89,12.55623826]
[1755614868806,0.57669,179.05,178.92,4.59214845]
[1755614869111,0.57669,179.05,178.92,4.67338196]
[1755614869424,23.72023826,179.12,178.91,4.67338196]
[1755614869425,3.16,179.03,178.91,4.67338196]
[1755614869612,3.16,179.03,178.89,12.55623826]
[1755614869613,3.16,179.03,178.9,4.67338196]
[1755614869812,0.57669,179.02,178.89,174.88962022]
[1755614870109,0.57669,179.02,178.89,170.21623826]
[1755614870311,0.57669,179.02,178.88,4.67338196]
[1755614870312,0.57669,179.01,178.87,4.67338196]
[1755614870504,3.16,179.0,178.85,4.67338196]
[1755614870813,3.16,179.0,178.83,162.17338196]
[1755614871008,3.16,178.98,178.83,162.17338196]
[1755614871307,3.16,178.98,178.83,157.5]
[1755614871508,375.56,179.03,178.83,157.5]
[1755614871509,0.57669,178.97,178.83,157.5]
[1755614871809,3.16,178.96,178.83,157.5]
[1755614873005,388.11623826,179.03,178.83,157.5]
[1755614873006,3.16,178.94,178.83,157.5]
[1755614873408,0.57669,178.93,178.83,163.0907]
[1755614873609,0.57669,178.93,178.83,157.5]
[1755614873908,3.16,178.94,178.85,5.5901]
[1755614874111,0.57669,178.93,178.85,5.5901]
[1755614874708,0.57669,178.92,178.84,4.67338196]
[1755614875007,3.16,178.98,178.83,174.72962022]
[1755614875313,3.16,178.98,178.84,5.5902]
[1755614875511,3.16,178.98,178.83,174.72962022]
[1755614875710,3.16,178.98,178.85,5.5901]
[1755614875912,0.57669,178.97,178.85,5.5901]
[1755614876110,0.57669,178.97,178.83,174.73526756]
[1755614876408,3.16,178.98,178.84,4.67913959]
[1755614876610,0.57669,178.97,178.87,4.67913959]
[1755614877109,0.57669,178.96,178.87,4.67913959]
[1755614877313,0.57669,179.01,178.89,4.67913959]
[1755614877514,3.16,179.0,178.88,4.67913959]
[1755614877716,3.16,179.0,178.87,4.67913959]
[1755614878108,3.16,178.98,178.85,4.67913959]
[1755614878607,0.57669,178.97,178.86,5.5896]
[1755614878914,0.57669,178.97,178.85,4.67913959]
[1755614879716,0.57669,178.97,178.84,4.67913959]
[1755614879916,0.57669,178.96,178.84,5.5902]
[1755614880133,3.16,178.96,178.83,4.68177383]
[1755614880313,0.57669,178.95,178.83,4.68177383]
[1755614880513,0.57669,178.95,178.84,4.68177383]
[1755614880709,3.16,178.96,178.85,4.68177383]
[1755614880910,0.57669,178.95,178.86,5.5896]
[1755614881215,0.57669,178.95,178.87,4.68177383]
[1755614881415,0.57669,178.95,178.88,4.68177383]
[1755614881615,0.57669,178.94,178.87,4.68177383]
[1755614881813,3.16,179.01,178.85,4.68124993]
[1755614881814,2.05,178.99,178.85,4.68124993]
[1755614882112,2.05,178.95,178.73,2.92]
[1755614882417,12.55623826,178.91,178.73,2.92]
[1755614882619,12.55623826,178.86,178.69,159.68]
[1755614883208,12.55623826,178.86,178.68,2.92]
[1755614883607,29.33623826,178.86,178.68,2.92]
[1755614883805,12.55623826,178.86,178.68,2.92]
[1755614884006,12.55623826,178.81,178.63,2.92]
[1755614884315,160.32,178.8,178.63,2.92]
[1755614884516,160.32,178.8,178.59,2.92]
[1755614884717,5.5964,178.66,178.59,2.92]
[1755614884918,3.16,178.77,178.6,2.92]
[1755614885311,3.16,178.77,178.64,2.92]
[1755614885522,3.16,178.81,178.64,2.92]
[1755614886919,160.18,178.84,178.69,2.92]
[1755614887121,3.16,178.86,178.69,2.92]
[1755614887717,3.16,178.86,178.76,2.92]
[1755614888113,375.56,178.9,178.78,5.5922]
[1755614888423,3.16,178.89,178.71,2.92]
[1755614888824,3.16,178.89,178.71,8.5144]
[1755614889117,0.04003402,178.82,178.71,2.92]
[1755614889325,0.04003402,178.82,178.72,5.5941]
[1755614889527,3.16,178.89,178.71,2.92]
[1755614890218,3.8549917,178.88,178.71,2.92]
[1755614890417,3.0,178.87,178.71,2.92]
[1755614891322,0.97357635,178.86,178.71,2.92]
[1755614891517,3.0,178.85,178.71,2.92]
[1755614891721,3.0,178.83,178.67,375.7]
[1755614892123,3.0,178.81,178.67,375.7]
[1755614892625,3.0,178.81,178.63,162.37]
[1755614893026,12.55623826,178.83,178.63,162.37]
[1755614893221,3.0,178.76,178.63,162.37]
[1755614894728,3.0,178.76,178.63,167.9667]
[1755614894925,3.0,178.76,178.63,162.37]
[1755614895718,3.0,178.84,178.66,5.5959]
[1755614895920,3.0,178.82,178.64,2.91]
[1755614896324,3.0,178.82,178.65,5.5964]
[1755614896728,3.0,178.82,178.64,2.91]
[1755614897229,3.0,178.79,178.63,159.46]
[1755614897434,3.83637924,178.78,178.6,2.91]
[1755614897723,6.83637924,178.77,178.6,2.91]
[1755614897931,12.55623826,178.8,178.6,2.91]
[1755614897932,3.0,178.76,178.6,2.91]
[1755614899233,12.55623826,178.8,178.6,2.91]
[1755614899234,3.0,178.74,178.6,2.91]
[1755614899625,3.0,178.74,178.6,8.5079]
[1755614899826,3.0,178.74,178.6,2.91]
[1755614901734,5.597,178.64,178.6,2.91]
[1755614901932,3.0,178.74,178.6,2.91]
[1755614902426,3.0,178.74,178.61,2.91]
[1755614903337,3.0,178.79,178.63,2.91]
[1755614905243,3.0,178.77,178.63,2.91]
[1755614905730,3.0,178.77,178.59,2.91]
[1755614905937,3.0,178.75,178.59,2.91]
[1755614906332,392.82,178.77,178.54,12.55623826]
[1755614906333,15.55623826,178.73,178.54,2.91]
[1755614906731,3.0,178.72,178.54,2.91]
[1755614908538,3.0,178.7,178.54,2.91]
[1755614910354,3.0,178.7,178.56,2.91]
[1755614910743,3.0,178.7,178.57,5.5988]
[1755614910941,3.0,178.7,178.58,2.91]
[1755614911342,11.1904,178.69,178.58,2.91]
[1755614912644,3.0,178.7,178.58,2.91]
[1755614914549,3.0,178.7,178.49,158.93446237]
[1755614914550,3.0,178.7,178.5,12.55623826]
[1755614914750,3.0,178.7,178.54,2.91]
[1755614915569,3.0,178.68,178.54,2.91]
[1755614917146,3.0,178.68,178.55,5.5995]
[1755614917347,3.0,178.68,178.56,2.91]
[1755614917551,3.0,178.72,178.56,2.91]
[1755614917848,3.0,178.72,178.57,2.91]
[1755614918664,5.90191952,178.83,178.62,2.91]
[1755614918855,6.82192496,178.82,178.66,3.0]